[Event "Titled Tuesday Blitz July 13 2021"]
[White "Gracia Alvarez, Gerardo Antonio"]
[Black "David, Alexandru-Vasile"]
[WhiteFideId "5109124"]
[BlackFideId "1223453"]
[WhiteElo "2148"]
[BlackElo "2393"]
[Result "0-1"]
[Round "02"]
[TimeControl "180+1"]
[Date "2021.07.13"]
[WhiteClock "0:00:00"]
[BlackClock "0:00:29"]

1. e4 {[%clk 0:03:00]}  c5 {[%clk 0:02:59]} 2. Nf3 {[%clk 0:03:00]}  e6 {[%clk 0:02:59]} 3. d4 {[%clk 0:03:00]}  cxd4 {[%clk 0:03:00]} 4. Nxd4 {[%clk 0:03:00]}  Nf6 {[%clk 0:03:00]} 5. Nc3 {[%clk 0:03:00]}  Nc6 {[%clk 0:03:01]} 6. a3 {[%clk 0:03:00]}  Be7 {[%clk 0:03:00]} 7. Be2 {[%clk 0:02:56]}  O-O {[%clk 0:03:00]} 8. Be3 {[%clk 0:02:52]}  d5 {[%clk 0:02:59]} 9. exd5 {[%clk 0:02:50]}  Nxd5 {[%clk 0:02:59]} 10. Nxd5 {[%clk 0:02:48]}  Qxd5 {[%clk 0:02:48]} 11. Bf3 {[%clk 0:02:29]}  Qa5+ {[%clk 0:02:48]} 12. Bd2 {[%clk 0:02:29]}  Qb6 {[%clk 0:02:46]} 13. Nxc6 {[%clk 0:02:23]}  bxc6 {[%clk 0:02:46]} 14. O-O {[%clk 0:02:15]}  Bf6 {[%clk 0:02:40]} 15. Be3 {[%clk 0:02:05]}  Qc7 {[%clk 0:02:31]} 16. c3 {[%clk 0:01:56]}  Ba6 {[%clk 0:02:29]} 17. Re1 {[%clk 0:01:56]}  Rfd8 {[%clk 0:02:28]} 18. Qa4 {[%clk 0:01:54]}  Bb5 {[%clk 0:02:26]} 19. Qg4 {[%clk 0:01:50]}  Rab8 {[%clk 0:02:25]} 20. Rad1 {[%clk 0:01:26]}  Bd3 {[%clk 0:02:24]} 21. Bf4 {[%clk 0:00:59]}  e5 {[%clk 0:02:20]} 22. Bg3 {[%clk 0:00:56]}  Rxb2 {[%clk 0:02:07]} 23. h4 {[%clk 0:00:56]}  h6 {[%clk 0:02:04]} 24. Re3 {[%clk 0:00:51]}  Bc2 {[%clk 0:01:52]} 25. Rde1 {[%clk 0:00:51]}  Rb1 {[%clk 0:01:50]} 26. Rxb1 {[%clk 0:00:48]}  Bxb1 {[%clk 0:01:51]} 27. Qc4 {[%clk 0:00:45]}  Qa5 {[%clk 0:01:41]} 28. Bxc6 {[%clk 0:00:37]}  Qxa3 {[%clk 0:01:34]} 29. Bd5 {[%clk 0:00:32]}  Bg6 {[%clk 0:01:28]} 30. Bxe5 {[%clk 0:00:25]}  Qc1+ {[%clk 0:01:19]} 31. Kh2 {[%clk 0:00:24]}  Bxh4 {[%clk 0:01:17]} 32. Rf3 {[%clk 0:00:20]}  Qg5 {[%clk 0:01:07]} 33. Bxf7+ {[%clk 0:00:17]}  Kh8 {[%clk 0:01:06]} 34. Bxg6 {[%clk 0:00:15]}  Qxe5+ {[%clk 0:01:03]} 35. g3 {[%clk 0:00:13]}  Bf6 {[%clk 0:01:03]} 36. Bb1 {[%clk 0:00:08]}  a5 {[%clk 0:00:59]} 37. Qf7 {[%clk 0:00:06]}  Qg5 {[%clk 0:00:50]} 38. Qe6 {[%clk 0:00:04]}  Qd5 {[%clk 0:00:47]} 39. Qg4 {[%clk 0:00:04]}  Qg5 {[%clk 0:00:39]} 40. Qe6 {[%clk 0:00:03]}  a4 {[%clk 0:00:36]} 41. Rf5 {[%clk 0:00:03]}  Qg6 {[%clk 0:00:31]} 42. Rd5 {[%clk 0:00:00]}  Qxb1 {[%clk 0:00:29]} 0-1


[Site "https://www.chess.com"]

[Event "Titled Tuesday Blitz July 13 2021"]
[White "Gupta, Abhijeet"]
[Black "Golubev, Mikhail"]
[WhiteFideId "5010608"]
[BlackFideId "14100983"]
[WhiteElo "2549"]
[BlackElo "2374"]
[Result "0-1"]
[Round "02"]
[TimeControl "180+1"]
[Date "2021.07.13"]
[WhiteClock "0:01:00"]
[BlackClock "0:00:19"]

1. d4 {[%clk 0:03:00]}  Nf6 {[%clk 0:02:58]} 2. c4 {[%clk 0:03:00]}  g6 {[%clk 0:02:59]} 3. Nc3 {[%clk 0:02:59]}  Bg7 {[%clk 0:02:59]} 4. e4 {[%clk 0:02:59]}  d6 {[%clk 0:02:59]} 5. f3 {[%clk 0:02:58]}  O-O {[%clk 0:02:59]} 6. Nge2 {[%clk 0:02:59]}  a6 {[%clk 0:02:56]} 7. Be3 {[%clk 0:02:51]}  Nbd7 {[%clk 0:02:53]} 8. Qd2 {[%clk 0:02:51]}  b5 {[%clk 0:02:50]} 9. Bh6 {[%clk 0:02:52]}  b4 {[%clk 0:01:59]} 10. Nd5 {[%clk 0:02:44]}  Bxh6 {[%clk 0:01:50]} 11. Nxf6+ {[%clk 0:02:33]}  Kg7 {[%clk 0:01:42]} 12. Nh5+ {[%clk 0:02:27]}  gxh5 {[%clk 0:01:42]} 13. f4 {[%clk 0:02:28]}  e5 {[%clk 0:01:39]} 14. g3 {[%clk 0:02:26]}  Qf6 {[%clk 0:01:34]} 15. O-O-O {[%clk 0:02:18]}  exd4 {[%clk 0:01:29]} 16. Nxd4 {[%clk 0:02:10]}  Nc5 {[%clk 0:01:29]} 17. Bg2 {[%clk 0:02:09]}  Rb8 {[%clk 0:01:16]} 18. Bf3 {[%clk 0:01:53]}  b3 {[%clk 0:01:05]} 19. a3 {[%clk 0:01:53]}  Kg8 {[%clk 0:01:04]} 20. Kb1 {[%clk 0:01:48]}  Re8 {[%clk 0:00:57]} 21. Rhe1 {[%clk 0:01:48]}  Bg7 {[%clk 0:00:53]} 22. Qf2 {[%clk 0:01:27]}  Bb7 {[%clk 0:00:48]} 23. e5 {[%clk 0:01:11]}  dxe5 {[%clk 0:00:43]} 24. fxe5 {[%clk 0:01:11]}  Rxe5 {[%clk 0:00:30]} 25. Rxe5 {[%clk 0:01:11]}  Qxe5 {[%clk 0:00:29]} 26. Bxb7 {[%clk 0:01:11]}  Rxb7 {[%clk 0:00:26]} 27. Nc6 {[%clk 0:01:12]}  Qe4+ {[%clk 0:00:26]} 28. Ka1 {[%clk 0:01:11]}  Qxc6 {[%clk 0:00:25]} 29. Rd8+ {[%clk 0:01:08]}  Bf8 {[%clk 0:00:25]} 30. Qe1 {[%clk 0:01:03]}  Ne6 {[%clk 0:00:25]} 31. Rd5 {[%clk 0:01:03]}  Qxc4 {[%clk 0:00:24]} 32. Rxh5 {[%clk 0:01:02]}  Bxa3 {[%clk 0:00:23]} 33. Qd2 {[%clk 0:01:00]}  Be7 {[%clk 0:00:19]} 0-1


[Site "https://www.chess.com"]

[Event "Titled Tuesday Blitz July 13 2021"]
[White "Guzman Moneo, Alberto"]
[Black "Hryshchenko, Kamila"]
[WhiteFideId "2209616"]
[BlackFideId "14147491"]
[WhiteElo "2157"]
[BlackElo "1966"]
[Result "1/2-1/2"]
[Round "02"]
[TimeControl "180+1"]
[Date "2021.07.13"]
[WhiteClock "0:00:15"]
[BlackClock "0:00:18"]

1. e4 {[%clk 0:03:00]}  d5 {[%clk 0:03:00]} 2. exd5 {[%clk 0:03:00]}  Qxd5 {[%clk 0:03:01]} 3. Nc3 {[%clk 0:03:00]}  Qe5+ {[%clk 0:03:01]} 4. Be2 {[%clk 0:02:58]}  Bg4 {[%clk 0:03:01]} 5. d4 {[%clk 0:02:51]}  Bxe2 {[%clk 0:03:02]} 6. Ngxe2 {[%clk 0:02:44]}  Qa5 {[%clk 0:03:03]} 7. O-O {[%clk 0:02:44]}  Nf6 {[%clk 0:03:03]} 8. Bd2 {[%clk 0:02:33]}  Nc6 {[%clk 0:03:02]} 9. Ne4 {[%clk 0:02:14]}  Qf5 {[%clk 0:03:02]} 10. N2g3 {[%clk 0:02:12]}  Qd5 {[%clk 0:03:02]} 11. Nxf6+ {[%clk 0:02:07]}  gxf6 {[%clk 0:03:02]} 12. Be3 {[%clk 0:02:00]}  h5 {[%clk 0:03:02]} 13. c4 {[%clk 0:01:45]}  Qxc4 {[%clk 0:03:02]} 14. d5 {[%clk 0:01:45]}  Nb4 {[%clk 0:02:56]} 15. Rc1 {[%clk 0:01:44]}  Qxd5 {[%clk 0:02:55]} 16. Rxc7 {[%clk 0:01:32]}  h4 {[%clk 0:02:34]} 17. Ne2 {[%clk 0:01:16]}  e6 {[%clk 0:01:59]} 18. Qxd5 {[%clk 0:01:05]}  Nxd5 {[%clk 0:01:58]} 19. Rxb7 {[%clk 0:01:05]}  Nxe3 {[%clk 0:01:53]} 20. fxe3 {[%clk 0:01:06]}  Rh6 {[%clk 0:01:32]} 21. Rc1 {[%clk 0:00:46]}  Bd6 {[%clk 0:01:31]} 22. Nd4 {[%clk 0:00:43]}  Be5 {[%clk 0:01:30]} 23. Nc6 {[%clk 0:00:34]}  Bxb2 {[%clk 0:01:24]} 24. Rxb2 {[%clk 0:00:32]}  Rc8 {[%clk 0:01:22]} 25. Rb8 {[%clk 0:00:28]}  Rxb8 {[%clk 0:01:19]} 26. Nxb8 {[%clk 0:00:28]}  h3 {[%clk 0:01:19]} 27. Rc8+ {[%clk 0:00:25]}  Ke7 {[%clk 0:01:20]} 28. g3 {[%clk 0:00:24]}  Rh5 {[%clk 0:01:20]} 29. Rc7+ {[%clk 0:00:23]}  Ke8 {[%clk 0:01:20]} 30. Nc6 {[%clk 0:00:20]}  Rc5 {[%clk 0:01:17]} 31. g4 {[%clk 0:00:16]}  Rc2 {[%clk 0:01:11]} 32. a4 {[%clk 0:00:10]}  a5 {[%clk 0:01:11]} 33. e4 {[%clk 0:00:05]}  Kf8 {[%clk 0:01:10]} 34. Rc8+ {[%clk 0:00:03]}  Kg7 {[%clk 0:01:11]} 35. Na7 {[%clk 0:00:03]}  Rg2+ {[%clk 0:01:10]} 36. Kh1 {[%clk 0:00:03]}  Rxg4 {[%clk 0:01:11]} 37. Rc3 {[%clk 0:00:03]}  Rxe4 {[%clk 0:01:10]} 38. Rxh3 {[%clk 0:00:03]}  Rxa4 {[%clk 0:01:10]} 39. Rg3+ {[%clk 0:00:03]}  Kh6 {[%clk 0:01:10]} 40. Nc6 {[%clk 0:00:03]}  f5 {[%clk 0:01:09]} 41. Nd8 {[%clk 0:00:03]}  f4 {[%clk 0:01:05]} 42. Nxf7+ {[%clk 0:00:03]}  Kh5 {[%clk 0:01:06]} 43. Rg5+ {[%clk 0:00:03]}  Kh4 {[%clk 0:01:06]} 44. Rg7 {[%clk 0:00:02]}  f3 {[%clk 0:01:06]} 45. Kg1 {[%clk 0:00:01]}  Ra2 {[%clk 0:01:06]} 46. Kf1 {[%clk 0:00:01]}  Rxh2 {[%clk 0:01:04]} 47. Ne5 {[%clk 0:00:02]}  Rh3 {[%clk 0:00:58]} 48. Kf2 {[%clk 0:00:02]}  Rh2+ {[%clk 0:00:37]} 49. Kxf3 {[%clk 0:00:02]}  Rb2 {[%clk 0:00:38]} 50. Kf4 {[%clk 0:00:01]}  Rb4+ {[%clk 0:00:37]} 51. Kf3 {[%clk 0:00:02]}  a4 {[%clk 0:00:37]} 52. Rg1 {[%clk 0:00:01]}  a3 {[%clk 0:00:35]} 53. Nd3 {[%clk 0:00:02]}  Rb3 {[%clk 0:00:35]} 54. Ke4 {[%clk 0:00:02]}  Kh3 {[%clk 0:00:35]} 55. Ra1 {[%clk 0:00:03]}  Kg2 {[%clk 0:00:34]} 56. Ra2+ {[%clk 0:00:03]}  Kg3 {[%clk 0:00:33]} 57. Kd4 {[%clk 0:00:04]}  Kf3 {[%clk 0:00:32]} 58. Kc4 {[%clk 0:00:04]}  Rb8 {[%clk 0:00:31]} 59. Rxa3 {[%clk 0:00:04]}  Ke4 {[%clk 0:00:31]} 60. Nc5+ {[%clk 0:00:04]}  Kf5 {[%clk 0:00:31]} 61. Ra7 {[%clk 0:00:05]}  Re8 {[%clk 0:00:26]} 62. Ra1 {[%clk 0:00:05]}  Rd8 {[%clk 0:00:21]} 63. Rf1+ {[%clk 0:00:05]}  Ke5 {[%clk 0:00:18]} 64. Re1+ {[%clk 0:00:05]}  Kf6 {[%clk 0:00:18]} 65. Rxe6+ {[%clk 0:00:05]}  Kf5 {[%clk 0:00:18]} 66. Re1 {[%clk 0:00:06]}  Rd2 {[%clk 0:00:18]} 67. Rc1 {[%clk 0:00:06]}  Rh2 {[%clk 0:00:18]} 68. Rc3 {[%clk 0:00:07]}  Ke5 {[%clk 0:00:18]} 69. Kb3 {[%clk 0:00:07]}  Rh4 {[%clk 0:00:17]} 70. Nd3+ {[%clk 0:00:07]}  Kd5 {[%clk 0:00:17]} 71. Nb4+ {[%clk 0:00:08]}  Kd6 {[%clk 0:00:17]} 72. Nc2 {[%clk 0:00:09]}  Kd5 {[%clk 0:00:17]} 73. Na3 {[%clk 0:00:10]}  Kd6 {[%clk 0:00:17]} 74. Nb1 {[%clk 0:00:11]}  Kd5 {[%clk 0:00:18]} 75. Nd2 {[%clk 0:00:11]}  Kd6 {[%clk 0:00:18]} 76. Nc4+ {[%clk 0:00:12]}  Kd5 {[%clk 0:00:18]} 77. Nb6+ {[%clk 0:00:12]}  Kd6 {[%clk 0:00:19]} 78. Nc8+ {[%clk 0:00:13]}  Kd7 {[%clk 0:00:19]} 79. Na7 {[%clk 0:00:14]}  Kd6 {[%clk 0:00:19]} 80. Nb5+ {[%clk 0:00:14]}  Kd5 {[%clk 0:00:20]} 81. Rc8 {[%clk 0:00:14]}  Rh3+ {[%clk 0:00:19]} 82. Rc3 {[%clk 0:00:14]}  Rxc3+ {[%clk 0:00:18]} 83. Nxc3+ {[%clk 0:00:15]} 1/2-1/2


[Site "https://www.chess.com"]

[Event "Titled Tuesday Blitz July 13 2021"]
[White "Hansen, Sune Berg"]
[Black "Nathan, Nitish"]
[WhiteFideId "1400266"]
[BlackFideId "30927870"]
[WhiteElo "2597"]
[BlackElo "2229"]
[Result "1-0"]
[Round "02"]
[TimeControl "180+1"]
[Date "2021.07.13"]
[WhiteClock "0:01:10"]
[BlackClock "0:01:39"]

1. e4 {[%clk 0:03:00]}  c5 {[%clk 0:02:59]} 2. Nc3 {[%clk 0:03:00]}  Nc6 {[%clk 0:02:59]} 3. Bb5 {[%clk 0:03:00]}  g6 {[%clk 0:02:58]} 4. Bxc6 {[%clk 0:03:00]}  dxc6 {[%clk 0:02:58]} 5. d3 {[%clk 0:03:00]}  Bg7 {[%clk 0:02:58]} 6. Be3 {[%clk 0:03:00]}  b6 {[%clk 0:02:55]} 7. Qd2 {[%clk 0:03:00]}  e5 {[%clk 0:02:54]} 8. Nge2 {[%clk 0:03:00]}  Ne7 {[%clk 0:02:55]} 9. Bh6 {[%clk 0:02:59]}  O-O {[%clk 0:02:54]} 10. h4 {[%clk 0:02:59]}  f5 {[%clk 0:02:48]} 11. h5 {[%clk 0:02:54]}  f4 {[%clk 0:02:46]} 12. Bxg7 {[%clk 0:02:54]}  Kxg7 {[%clk 0:02:45]} 13. hxg6 {[%clk 0:02:55]}  hxg6 {[%clk 0:02:45]} 14. O-O-O {[%clk 0:02:54]}  Bg4 {[%clk 0:02:43]} 15. f3 {[%clk 0:02:54]}  Be6 {[%clk 0:02:43]} 16. g3 {[%clk 0:02:55]}  g5 {[%clk 0:02:38]} 17. gxf4 {[%clk 0:02:53]}  exf4 {[%clk 0:02:38]} 18. Rdg1 {[%clk 0:02:49]}  Ng6 {[%clk 0:02:38]} 19. Rh5 {[%clk 0:02:48]}  g4 {[%clk 0:02:37]} 20. fxg4 {[%clk 0:02:40]}  Rh8 {[%clk 0:02:32]} 21. Nxf4 {[%clk 0:02:38]}  Nxf4 {[%clk 0:02:26]} 22. Qxf4 {[%clk 0:02:38]}  Qf6 {[%clk 0:02:26]} 23. Ne2 {[%clk 0:02:15]}  Qxf4+ {[%clk 0:02:22]} 24. Nxf4 {[%clk 0:02:15]}  Bf7 {[%clk 0:02:23]} 25. Rf5 {[%clk 0:02:07]}  Rh2 {[%clk 0:02:21]} 26. b3 {[%clk 0:02:05]}  a5 {[%clk 0:02:16]} 27. Rg2 {[%clk 0:01:55]}  Rh1+ {[%clk 0:02:14]} 28. Kb2 {[%clk 0:01:54]}  a4 {[%clk 0:02:14]} 29. Nh5+ {[%clk 0:01:50]}  Kg8 {[%clk 0:02:11]} 30. Nf6+ {[%clk 0:01:47]}  Kg7 {[%clk 0:02:09]} 31. Nh5+ {[%clk 0:01:39]}  Kg8 {[%clk 0:02:09]} 32. Rgf2 {[%clk 0:01:40]}  Ra7 {[%clk 0:02:03]} 33. Rg5+ {[%clk 0:01:31]}  Kf8 {[%clk 0:02:01]} 34. e5 {[%clk 0:01:26]}  axb3 {[%clk 0:01:54]} 35. axb3 {[%clk 0:01:24]}  Ke8 {[%clk 0:01:49]} 36. Ng7+ {[%clk 0:01:16]}  Kf8 {[%clk 0:01:48]} 37. e6 {[%clk 0:01:16]}  Rh7 {[%clk 0:01:46]} 38. Nh5 {[%clk 0:01:13]}  Ke8 {[%clk 0:01:39]} 39. Nf6+ {[%clk 0:01:11]}  Kf8 {[%clk 0:01:39]} 40. Nxh7+ {[%clk 0:01:11]}  Ke7 {[%clk 0:01:39]} 41. Rxf7+ {[%clk 0:01:10]} 1-0


[Site "https://www.chess.com"]

[Event "Titled Tuesday Blitz July 13 2021"]
[White "Iskusnyh, Sergei"]
[Black "Rodchenkov, Vitaly"]
[WhiteFideId "4120027"]
[BlackFideId "4152964"]
[WhiteElo "2492"]
[BlackElo "2337"]
[Result "1-0"]
[Round "02"]
[TimeControl "180+1"]
[Date "2021.07.13"]
[WhiteClock "0:00:16"]
[BlackClock "0:00:23"]

1. d4 {[%clk 0:03:00]}  Nf6 {[%clk 0:02:59]} 2. c4 {[%clk 0:03:01]}  e6 {[%clk 0:02:59]} 3. g3 {[%clk 0:03:01]}  d5 {[%clk 0:02:58]} 4. Bg2 {[%clk 0:03:01]}  Be7 {[%clk 0:02:59]} 5. Nf3 {[%clk 0:03:01]}  O-O {[%clk 0:02:59]} 6. Qc2 {[%clk 0:02:58]}  b6 {[%clk 0:02:59]} 7. O-O {[%clk 0:02:57]}  Bb7 {[%clk 0:02:57]} 8. cxd5 {[%clk 0:02:57]}  exd5 {[%clk 0:02:57]} 9. Nc3 {[%clk 0:02:57]}  Na6 {[%clk 0:02:57]} 10. Rd1 {[%clk 0:02:54]}  Re8 {[%clk 0:02:56]} 11. Ne5 {[%clk 0:02:46]}  Bf8 {[%clk 0:02:56]} 12. Bg5 {[%clk 0:02:45]}  c5 {[%clk 0:02:56]} 13. Bxf6 {[%clk 0:02:26]}  gxf6 {[%clk 0:02:54]} 14. Ng4 {[%clk 0:02:24]}  Nb4 {[%clk 0:02:32]} 15. Qf5 {[%clk 0:02:21]}  Bg7 {[%clk 0:02:25]} 16. dxc5 {[%clk 0:02:20]}  bxc5 {[%clk 0:02:24]} 17. Nxd5 {[%clk 0:02:17]}  Nxd5 {[%clk 0:02:18]} 18. Bxd5 {[%clk 0:02:16]}  Bxd5 {[%clk 0:02:19]} 19. Rxd5 {[%clk 0:02:16]}  Qe7 {[%clk 0:02:19]} 20. Ne3 {[%clk 0:01:49]}  Rab8 {[%clk 0:02:03]} 21. b3 {[%clk 0:01:46]}  Qe6 {[%clk 0:01:57]} 22. Rad1 {[%clk 0:01:43]}  Bh6 {[%clk 0:01:41]} 23. Ng4 {[%clk 0:01:37]}  Bg7 {[%clk 0:01:38]} 24. Qxe6 {[%clk 0:01:21]}  Rxe6 {[%clk 0:01:36]} 25. Kf1 {[%clk 0:01:13]}  Rbe8 {[%clk 0:01:25]} 26. Rd8 {[%clk 0:01:02]}  Kf8 {[%clk 0:01:24]} 27. Rxe8+ {[%clk 0:00:58]}  Kxe8 {[%clk 0:01:24]} 28. Rd5 {[%clk 0:00:58]}  Ra6 {[%clk 0:01:15]} 29. Rxc5 {[%clk 0:00:54]}  Rxa2 {[%clk 0:01:15]} 30. Ne3 {[%clk 0:00:48]}  Rb2 {[%clk 0:01:13]} 31. Rc8+ {[%clk 0:00:47]}  Kd7 {[%clk 0:01:12]} 32. Rb8 {[%clk 0:00:46]}  Bh6 {[%clk 0:01:08]} 33. Nf5 {[%clk 0:00:46]}  Bd2 {[%clk 0:01:06]} 34. Rb7+ {[%clk 0:00:45]}  Ke6 {[%clk 0:01:04]} 35. g4 {[%clk 0:00:46]}  h5 {[%clk 0:01:01]} 36. h3 {[%clk 0:00:45]}  hxg4 {[%clk 0:01:00]} 37. hxg4 {[%clk 0:00:45]}  a5 {[%clk 0:00:59]} 38. e3 {[%clk 0:00:43]}  Bb4 {[%clk 0:00:43]} 39. Kg2 {[%clk 0:00:40]}  Ke5 {[%clk 0:00:36]} 40. Rb5+ {[%clk 0:00:33]}  Ke4 {[%clk 0:00:34]} 41. Rb7 {[%clk 0:00:21]}  Be1 {[%clk 0:00:32]} 42. Re7+ {[%clk 0:00:19]}  Kd3 {[%clk 0:00:32]} 43. Rd7+ {[%clk 0:00:19]}  Ke4 {[%clk 0:00:28]} 44. Rd4+ {[%clk 0:00:17]}  Ke5 {[%clk 0:00:28]} 45. Rf4 {[%clk 0:00:17]}  Rxb3 {[%clk 0:00:26]} 46. Nd4 {[%clk 0:00:17]}  Rb2 {[%clk 0:00:25]} 47. Nf3+ {[%clk 0:00:17]}  Ke6 {[%clk 0:00:22]} 48. Nxe1 {[%clk 0:00:18]}  Rb4 {[%clk 0:00:22]} 49. Rxb4 {[%clk 0:00:17]}  axb4 {[%clk 0:00:23]} 50. Nd3 {[%clk 0:00:16]} 1-0


[Site "https://www.chess.com"]

[Event "Titled Tuesday Blitz July 13 2021"]
[White "Krivonosov, Oleg"]
[Black "Kim, Sergey"]
[WhiteFideId "11600349"]
[BlackFideId "13700570"]
[WhiteElo "2469"]
[BlackElo "2483"]
[Result "1-0"]
[Round "02"]
[TimeControl "180+1"]
[Date "2021.07.13"]
[WhiteClock "0:02:11"]
[BlackClock "0:01:05"]

1. Nf3 {[%clk 0:03:00]}  Nf6 {[%clk 0:02:59]} 2. c4 {[%clk 0:02:59]}  g6 {[%clk 0:02:59]} 3. Nc3 {[%clk 0:02:59]}  Bg7 {[%clk 0:02:59]} 4. e4 {[%clk 0:02:59]}  d6 {[%clk 0:02:59]} 5. d4 {[%clk 0:03:00]}  O-O {[%clk 0:02:59]} 6. Be2 {[%clk 0:03:00]}  e5 {[%clk 0:02:59]} 7. dxe5 {[%clk 0:03:00]}  dxe5 {[%clk 0:02:58]} 8. Qxd8 {[%clk 0:03:00]}  Rxd8 {[%clk 0:02:58]} 9. Bg5 {[%clk 0:03:00]}  c6 {[%clk 0:02:58]} 10. Nxe5 {[%clk 0:02:59]}  Re8 {[%clk 0:02:58]} 11. O-O-O {[%clk 0:02:59]}  Na6 {[%clk 0:02:57]} 12. Rd6 {[%clk 0:02:57]}  Be6 {[%clk 0:02:57]} 13. f4 {[%clk 0:02:56]}  Nc5 {[%clk 0:02:49]} 14. Bf3 {[%clk 0:02:54]}  h6 {[%clk 0:02:42]} 15. Bh4 {[%clk 0:02:53]}  g5 {[%clk 0:02:43]} 16. Bf2 {[%clk 0:02:53]}  Na6 {[%clk 0:02:27]} 17. g3 {[%clk 0:02:51]}  g4 {[%clk 0:02:14]} 18. Bg2 {[%clk 0:02:49]}  Bf8 {[%clk 0:02:09]} 19. Rd2 {[%clk 0:02:46]}  Nc5 {[%clk 0:02:03]} 20. b3 {[%clk 0:02:39]}  a5 {[%clk 0:02:01]} 21. Kb2 {[%clk 0:02:36]}  a4 {[%clk 0:02:00]} 22. Bd4 {[%clk 0:02:26]}  Nfd7 {[%clk 0:01:19]} 23. Nxd7 {[%clk 0:02:15]}  Bxd7 {[%clk 0:01:07]} 24. Bxc5 {[%clk 0:02:11]}  Bxc5 {[%clk 0:01:05]} 25. Rxd7 {[%clk 0:02:11]}  axb3 {[%clk 0:01:05]} 26. axb3 {[%clk 0:02:11]} 1-0


[Site "https://www.chess.com"]

[Event "Titled Tuesday Blitz July 13 2021"]
[White "Maly, Alexey"]
[Black "Oganisian, Roman"]
[WhiteFideId "14103184"]
[BlackFideId "4153006"]
[WhiteElo "2285"]
[BlackElo "2204"]
[Result "0-1"]
[Round "02"]
[TimeControl "180+1"]
[Date "2021.07.13"]
[WhiteClock "0:01:23"]
[BlackClock "0:00:22"]

1. d4 {[%clk 0:03:00]}  e6 {[%clk 0:03:00]} 2. c4 {[%clk 0:03:01]}  f5 {[%clk 0:03:00]} 3. Nf3 {[%clk 0:03:01]}  Nf6 {[%clk 0:03:00]} 4. g3 {[%clk 0:03:01]}  Be7 {[%clk 0:03:01]} 5. Bg2 {[%clk 0:03:01]}  O-O {[%clk 0:03:01]} 6. O-O {[%clk 0:03:02]}  Ne4 {[%clk 0:03:01]} 7. Nfd2 {[%clk 0:02:56]}  d5 {[%clk 0:02:59]} 8. Nxe4 {[%clk 0:02:53]}  fxe4 {[%clk 0:02:54]} 9. f3 {[%clk 0:02:53]}  exf3 {[%clk 0:02:48]} 10. Bxf3 {[%clk 0:02:53]}  Bf6 {[%clk 0:02:47]} 11. Nc3 {[%clk 0:02:50]}  dxc4 {[%clk 0:02:41]} 12. e3 {[%clk 0:02:42]}  c6 {[%clk 0:02:40]} 13. Qe2 {[%clk 0:02:38]}  e5 {[%clk 0:02:16]} 14. Qxc4+ {[%clk 0:02:37]}  Kh8 {[%clk 0:02:16]} 15. Ne4 {[%clk 0:02:34]}  exd4 {[%clk 0:02:13]} 16. Nxf6 {[%clk 0:02:34]}  Rxf6 {[%clk 0:01:33]} 17. exd4 {[%clk 0:02:32]}  Bh3 {[%clk 0:01:29]} 18. Bg5 {[%clk 0:02:12]}  Bxf1 {[%clk 0:01:26]} 19. Rxf1 {[%clk 0:02:13]}  Nd7 {[%clk 0:01:23]} 20. Bxf6 {[%clk 0:02:10]}  Nxf6 {[%clk 0:01:23]} 21. Rd1 {[%clk 0:02:06]}  Qb6 {[%clk 0:01:18]} 22. b3 {[%clk 0:02:04]}  Rd8 {[%clk 0:01:17]} 23. Kg2 {[%clk 0:02:04]}  h6 {[%clk 0:01:05]} 24. d5 {[%clk 0:02:00]}  cxd5 {[%clk 0:00:52]} 25. Bxd5 {[%clk 0:02:00]}  Qa5 {[%clk 0:00:36]} 26. Bf3 {[%clk 0:01:51]}  Qxa2+ {[%clk 0:00:33]} 27. Kh3 {[%clk 0:01:47]}  Rf8 {[%clk 0:00:27]} 28. Qc5 {[%clk 0:01:41]}  Re8 {[%clk 0:00:25]} 29. Rd3 {[%clk 0:01:32]}  Qb1 {[%clk 0:00:23]} 30. Qf5 {[%clk 0:01:27]}  Qf1+ {[%clk 0:00:22]} 31. Kh4 {[%clk 0:01:23]}  g5+ {[%clk 0:00:22]} 0-1


[Site "https://www.chess.com"]

[Event "Titled Tuesday Blitz July 13 2021"]
[White "Martinez Alcantara, Jose Eduardo"]
[Black "Musovic, Armin"]
[WhiteFideId "3805662"]
[BlackFideId "939935"]
[WhiteElo "2690"]
[BlackElo "2250"]
[Result "1-0"]
[Round "02"]
[TimeControl "180+1"]
[Date "2021.07.13"]
[WhiteClock "0:01:11"]
[BlackClock "0:01:50"]

1. e4 {[%clk 0:03:00]}  c6 {[%clk 0:03:00]} 2. Nf3 {[%clk 0:03:01]}  d5 {[%clk 0:03:01]} 3. d3 {[%clk 0:03:02]}  dxe4 {[%clk 0:03:01]} 4. dxe4 {[%clk 0:03:03]}  Qxd1+ {[%clk 0:03:01]} 5. Kxd1 {[%clk 0:03:03]}  Bg4 {[%clk 0:03:02]} 6. Be2 {[%clk 0:03:04]}  Bxf3 {[%clk 0:03:02]} 7. Bxf3 {[%clk 0:03:04]}  e6 {[%clk 0:03:03]} 8. Be2 {[%clk 0:03:01]}  Nd7 {[%clk 0:03:04]} 9. f3 {[%clk 0:03:01]}  Ngf6 {[%clk 0:03:05]} 10. c3 {[%clk 0:03:01]}  h6 {[%clk 0:03:05]} 11. Kc2 {[%clk 0:03:02]}  Bd6 {[%clk 0:03:05]} 12. Nd2 {[%clk 0:03:02]}  Bc7 {[%clk 0:03:05]} 13. a4 {[%clk 0:03:02]}  Nb6 {[%clk 0:03:05]} 14. Nb3 {[%clk 0:03:00]}  Nbd7 {[%clk 0:03:05]} 15. Be3 {[%clk 0:02:59]}  O-O {[%clk 0:03:06]} 16. a5 {[%clk 0:02:57]}  b6 {[%clk 0:03:05]} 17. Nd4 {[%clk 0:02:54]}  bxa5 {[%clk 0:03:02]} 18. Nxc6 {[%clk 0:02:50]}  Kh7 {[%clk 0:03:00]} 19. Nxa5 {[%clk 0:02:49]}  Rfc8 {[%clk 0:02:59]} 20. Rhd1 {[%clk 0:02:48]}  Bxh2 {[%clk 0:02:58]} 21. Nc4 {[%clk 0:02:42]}  Nc5 {[%clk 0:02:55]} 22. b4 {[%clk 0:02:37]}  Ncd7 {[%clk 0:02:53]} 23. Rxa7 {[%clk 0:02:34]}  Rxa7 {[%clk 0:02:52]} 24. Bxa7 {[%clk 0:02:34]}  Ra8 {[%clk 0:02:49]} 25. Be3 {[%clk 0:02:34]}  Ra2+ {[%clk 0:02:47]} 26. Nb2 {[%clk 0:02:34]}  h5 {[%clk 0:02:47]} 27. Kb3 {[%clk 0:02:34]}  Ra8 {[%clk 0:02:46]} 28. Nc4 {[%clk 0:02:25]}  h4 {[%clk 0:02:44]} 29. f4 {[%clk 0:02:09]}  e5 {[%clk 0:02:41]} 30. f5 {[%clk 0:02:09]}  Rb8 {[%clk 0:02:33]} 31. Nd6 {[%clk 0:01:58]}  g6 {[%clk 0:02:25]} 32. Nxf7 {[%clk 0:01:50]}  Bf4 {[%clk 0:02:19]} 33. Bxf4 {[%clk 0:01:41]}  exf4 {[%clk 0:02:20]} 34. e5 {[%clk 0:01:42]}  Kg7 {[%clk 0:02:13]} 35. exf6+ {[%clk 0:01:41]}  Kxf7 {[%clk 0:02:12]} 36. Rxd7+ {[%clk 0:01:41]}  Kxf6 {[%clk 0:02:13]} 37. fxg6 {[%clk 0:01:40]}  Kxg6 {[%clk 0:02:13]} 38. Rd4 {[%clk 0:01:34]}  Kf5 {[%clk 0:02:06]} 39. Rd5+ {[%clk 0:01:34]}  Kg6 {[%clk 0:02:04]} 40. b5 {[%clk 0:01:32]}  Re8 {[%clk 0:02:03]} 41. Bd3+ {[%clk 0:01:30]}  Kh6 {[%clk 0:02:04]} 42. b6 {[%clk 0:01:31]}  Rb8 {[%clk 0:02:02]} 43. Rd6+ {[%clk 0:01:27]}  Kg5 {[%clk 0:02:01]} 44. Be4 {[%clk 0:01:23]}  f3 {[%clk 0:01:58]} 45. Bxf3 {[%clk 0:01:23]}  Kf4 {[%clk 0:01:58]} 46. c4 {[%clk 0:01:13]}  Ke5 {[%clk 0:01:54]} 47. c5 {[%clk 0:01:11]}  Kf4 {[%clk 0:01:50]} 48. Kb4 {[%clk 0:01:11]}  h3 {[%clk 0:01:49]} 49. gxh3 {[%clk 0:01:12]}  Rh8 {[%clk 0:01:49]} 50. Bg4 {[%clk 0:01:11]}  Rxh3 {[%clk 0:01:49]} 51. Bxh3 {[%clk 0:01:11]}  Ke3 {[%clk 0:01:50]} 1-0


[Site "https://www.chess.com"]